Cogmind - Beta 9.6 @@@ ROGUE MODE // 2020.08.21 @ 21:55:15 Player: Cracklepappy Result: Destroyed by S-10 Pest with Light Assault Rifle Performance ------------- Evolutions (2) 1000 Regions Visited (3) 600 Robots Destroyed (49) 245 Value Destroyed (1516) 1516 Prototype IDs (7) 140 Alien Tech Used (0) 0 Bonus (0) 0 TOTAL SCORE: 3501 Bonus ------- None Cogmind --------- Core Integrity 0/550 Matter 217/300 Energy 99/100 System Corruption 2% Temperature Cool (0) Movement Rolling (140) Ox4 Location -8/Materials Parts ------- > --- POWER (1) -------- (None) > --- PROPULSION (2) --- Compact Wheel > --- UTILITY (6) ------ Small Storage Unit Small Storage Unit Medium Storage Unit Medium Storage Unit High-capacity Storage Unit Advanced Signal Interpreter > --- WEAPON (2) ------- Minigun Flak Cannon > --- INVENTORY (24) --- Deuterium Engine Light Deuterium Engine Nuclear Core Light Nuclear Core Light Nuclear Core Light Nuclear Core Light Nuclear Core Compact Wheel Improved Heat Sink Small Storage Unit Medium Battery (200) Improved Sensor Array Advanced Sensor Array Improved Signal Interpreter Improved Signal Interpreter Advanced Signal Interpreter Improved ECM Suite Medium Armor Plating Hardened Medium Armor Plating Assault Cannon Datajack Improved Datajack Axe Peak State ------------ > --- POWER ------------ Nuclear Core > --- PROPULSION ------- Compact Wheel Armored Wheel > --- UTILITY ---------- Improved Heat Sink Small Storage Unit Small Storage Unit Medium Storage Unit High-capacity Storage Unit Advanced Signal Interpreter > --- WEAPON ----------- Heavy Laser Flak Cannon > --- INVENTORY -------- Light Deuterium Engine Nuclear Core Light Nuclear Core Light Nuclear Core Light Nuclear Core Improved Heat Sink Medium Battery Improved Sensor Array Advanced Sensor Array Improved Signal Interpreter Advanced Signal Interpreter Improved ECM Suite Medium Armor Plating Hardened Medium Armor Plating Minigun Assault Cannon Datajack Improved Datajack Axe [Rating: 28] Favorites ----------- Power Light Ion Engine Engine Light Ion Engine Power Core Nuclear Core Propulsion Wheel Wheel Wheel Utility Small Storage Unit Device Improved Heat Sink Storage Small Storage Unit Processor Advanced Signal Interpreter Protection Light Armor Plating Weapon Advanced Beam Cannon Energy Gun EM Shotgun Energy Cannon Advanced Beam Cannon Ballistic Gun Minigun Ballistic Cannon Flak Cannon Build | -11 -10 -9 -8 ------- Run | Scr Mat Mat Mat Slots Evolved 4 | . . 2 2 Power . | . . . . Propulsion . | . . . . Utility 4 | . . 2 2 Weapon . | . . . . Parts Attached 48 | 7 3 13 25 Power 5 | 1 . . 4 Engine 3 | 1 . . 2 Core 2 | . . . 2 Reactor . | . . . . Propulsion 10 | 2 1 2 5 Treads . | . . . . Leg . | . . . . Wheel 10 | 2 1 2 5 Hover . | . . . . Flight . | . . . . Utility 14 | 2 . 4 8 Device 1 | . . . 1 Storage 10 | 2 . 3 5 Processor 1 | . . 1 . Hackware . | . . . . Protection 2 | . . . 2 Artifact . | . . . . Weapon 19 | 2 2 7 8 Energy Gun 11 | 2 . 7 2 Energy Cannon 4 | . . . 4 Ballistic Gun 3 | . 2 . 1 Ballistic Cannon 1 | . . . 1 Launcher . | . . . . Special Weapon . | . . . . Impact Weapon . | . . . . Slashing Weapon . | . . . . Piercing Weapon . | . . . . Special Melee Weapon . | . . . . Unidentified Prototypes . | . . . . Parts Lost 19 | . . . 19 Power 5 | . . . 5 Propulsion 5 | . . . 5 Utility 1 | . . . 1 Weapon 8 | . . . 8 Highest Loss Streak 8 | . . . 8 Average Slot Usage (%) 93 | . 100 98 90 Engine 4 | . 14 11 . Core 4 | . . . 5 Wheel 16 | . 28 22 13 Device 4 | . . . 6 Storage 34 | . 28 32 36 Processor 8 | . . 10 9 Energy Gun 6 | . 15 17 2 Energy Cannon 5 | . . . 7 Ballistic Gun 3 | . 12 4 2 Ballistic Cannon 3 | . . . 4 Naked Turns . | . . . . Heaviest Build 66 | 15 15 21 66 Greatest Support 28 | 20 20 26 28 Greatest Overweight (x) 18 | 4 . 1 18 Average Overweight (x) 1 | . . . 2 Largest Inventory Capacity 24 | 8 8 10 24 Average Capacity 14 | 7 8 9 17 Most Carried 23 | 7 8 10 23 Average Carried 13 | 4 7 9 16 Final Capacity 24 | 8 8 10 24 Final Carried 23 | 6 8 10 23 Class Distribution -------------------- 53% | Mutant 37% | Hauler-Mutant 8% | Scavenger-Mutant Dominant Class ---------------- Mutant | -10/Materials Mutant | -9/Materials Hauler-Mutant | -8/Materials Resources | -11 -10 -9 -8 ----------- Run | Scr Mat Mat Mat Matter Collected 1004 | 270 . 178 556 Remotely . | . . . . Salvage Created 2133 | 173 60 337 1563 Parts 106 | 11 1 15 79 Haulers Intercepted 2 | . 1 . 1 Recyclers Shooed . | . . . . Parts Field Recycled . | . . . . Retrieved Matter . | . . . . Parts Self-Destructed . | . . . . Prevented . | . . . . Kills | -11 -10 -9 -8 ------- Run | Scr Mat Mat Mat Combat Hostiles Destroyed 33 | . . 6 27 Guns 12 | . . 5 7 Cannons 20 | . . . 20 AOE 1 | . . 1 . Classes Destroyed 11 | 2 1 4 4 Worker 1 | . . . 1 Tunneler 4 | 4 . . . Hauler 2 | . 1 . 1 Recycler 6 | 1 . 1 4 Operator 1 | . . 1 . Watcher 2 | . . . 2 Swarmer 3 | . . . 3 Grunt 19 | . . 2 17 Brawler 3 | . . 1 2 Sentry 7 | . . 3 4 Hunter 1 | . . . 1 Best Kill Streak 11 | 3 1 5 11 Combat Bots Only 7 | . . 4 7 Max Kills in Single Turn 3 | 1 1 3 2 Gunslinging . | . . . . Exploded 1 | . . 1 . Melee . | . . . . Uniques/NPCs Destroyed . | . . . . Combat | -11 -10 -9 -8 -------- Run | Scr Mat Mat Mat Damage Taken 2629 | . . 372 2257 Core 619 | . . 68 551 Absorbed by Shields . | . . . . Core Remaining (%) 94 | 100 100 83 . Volleys Fired 125 | 8 5 16 96 Largest 2 | 2 2 2 2 Hottest 137 | 100 100 90 137 Shots Fired 231 | 16 10 30 175 Gun 114 | 16 10 30 58 Cannon 117 | . . . 117 Launcher . | . . . . Special . | . . . . Kinetic 100 | . . 6 94 Thermal 101 | 16 10 6 69 Explosive . | . . . . Electromagnetic 30 | . . 18 12 Robot Hit Streak 12 | 4 5 8 12 Robot Miss Streak 7 | 3 2 3 7 Penetration Max . | . . . . Secondary Targets 2 | . . 2 . Max Gunslinging Chain 1 | . . 1 . Shots Hit Robots 158 | 7 6 23 122 Core Hits 113 | 6 2 13 92 Critical Hits 4 | . . . 4 Critical Kills 1 | . . . 1 Critical Parts Destroyed 3 | . . . 3 Melee Attacks . | . . . . Impact . | . . . . Slashing . | . . . . Piercing . | . . . . Sneak Attacks . | . . . . Combat Hostiles . | . . . . Follow-up Attacks . | . . . . Damage Inflicted 2983 | 100 87 448 2348 Guns 1158 | 100 87 319 652 Cannons 1696 | . . . 1696 Explosions 129 | . . 129 . Melee . | . . . . Ramming . | . . . . Kinetic 1310 | . . 50 1260 Thermal 1296 | 100 87 214 895 Explosive . | . . . . Electromagnetic 377 | . . 184 193 Impact . | . . . . Slashing . | . . . . Piercing . | . . . . Highest Corruption 2 | . . . 2 Average Corruption 2 | . . . 2 Corruption Purged . | . . . . Effects 4 | . . . 4 Heat Flow Errors 2 | . . . 2 Data Loss (minor) 1 | . . . 1 Weapon Failures 1 | . . . 1 Overload Shots . | . . . . Overflow Damage 4 | . . . 4 Projectiles 4 | . . . 4 Explosions . | . . . . Melee . | . . . . Knockbacks 26 | . . . 26 Impact . | . . . . Kinetic 23 | . . . 23 Secondary 3 | . . . 3 Self-Inflicted Damage 9 | . . 9 . Shots 1 | . . 1 . Rammed . | . . . . Targets Rammed . | . . . . Kicked . | . . . . Crushed . | . . . . Highest Temperature 307 | 78 175 141 307 Average Temperature 85 | 38 96 60 97 Received Heat Transfer 1233 | . . 126 1107 Siege Activations . | . . . . Robots Corrupted . | . . . . Combat Hostiles . | . . . . Parts Fried 2 | . . . 2 Impact Corruptions . | . . . . Robots Melted . | . . . . Combat Hostiles . | . . . . Parts Melted 5 | . . 2 3 Heat Transferred 2618 | 296 259 435 1628 Parts Sabotaged . | . . . . Parts Stolen . | . . . . Parts Stripped . | . . . . Power Chain Reactions 2 | . . 2 . Missiles Intercepted . | . . . . Alert | -11 -10 -9 -8 ------- Run | Scr Mat Mat Mat Peak Influence 380 | 25 28 222 380 Average Influence 82 | 9 23 68 99 Maximum Alert Level 1 | . . 1 1 Low Security (%) 90 | 100 100 93 87 Level 1 9 | . . 6 12 Level 2 . | . . . . Level 3 . | . . . . Level 4 . | . . . . Level 5 . | . . . . High Security . | . . . . Max Security . | . . . . Squads Dispatched 6 | . . 3 3 Investigation 2 | . . 1 1 Extermination . | . . . . Reinforcement 4 | . . 2 2 Assault . | . . . . Garrison . | . . . . Intercept . | . . . . Construction Impeded . | . . . . Haulers Reinforced . | . . . . Stealth | -11 -10 -9 -8 --------- Run | Scr Mat Mat Mat Distress Signals 2 | . . 1 1 Communications Jammed . | . . . . Distress Signals . | . . . . Times Spotted 57 | . . 14 43 Peak Tracking Total 7 | . . 5 7 Tactical Retreats 6 | . . 1 5 Traps | -11 -10 -9 -8 ------- Run | Scr Mat Mat Mat Traps Triggered 1 | . . . 1 Indirectly . | . . . . Trap Hack Attempts . | . . . . Triggered . | . . . . Disarmed . | . . . . Reprogrammed . | . . . . Reused . | . . . . Traps Extracted . | . . . . Installed . | . . . . Triggered . | . . . . Machines | -11 -10 -9 -8 ---------- Run | Scr Mat Mat Mat Machines Disabled . | . . . . Max in Single Turn . | . . . . Machines Sabotaged . | . . . . Garrisons Compromised . | . . . . Overloaded Fab Kills . | . . . . Fab Network Shutdowns . | . . . . Hacking | -11 -10 -9 -8 --------- Run | Scr Mat Mat Mat Machines Accessed 12 | . 2 4 6 Terminals 12 | . 2 4 6 Fabricators . | . . . . Repair Stations . | . . . . Recycling Units . | . . . . Scanalyzers . | . . . . Garrison Access . | . . . . Total Hacks 34 | . 5 12 17 Successful 13 | . 2 4 7 Failed 21 | . 3 8 10 Catastrophic 4 | . 1 1 2 Database Lockouts . | . . . . Manual 18 | . 2 8 8 Terminals 34 | . 5 12 17 Fabricators . | . . . . Repair Stations . | . . . . Recycling Units . | . . . . Scanalyzers . | . . . . Garrison Access . | . . . . Terminal Hacks 13 | . 2 4 7 Part Schematic 2 | . . 2 . Prototype ID Bank 4 | . 1 1 2 Unreport Threat 2 | . . 1 1 Locate Traps 1 | . . . 1 Garrison Status 1 | . . . 1 Zone Layout 3 | . 1 . 2 Fabricator Hacks . | . . . . Repair Station Hacks . | . . . . Recycling Unit Hacks . | . . . . Scanalyzer . | . . . . Garrison Access Hacks . | . . . . Unauthorized Hacks . | . . . . Terminals . | . . . . Fabricators . | . . . . Repair Stations . | . . . . Recycling Units . | . . . . Scanalyzers . | . . . . Garrison Access . | . . . . Data Cores Recovered 1 | . . 1 . Used 1 | . . 1 . Hacking Detections 12 | . 2 4 6 Full Trace Events 1 | . . 1 . Feedback Events . | . . . . Feedback Blocked . | . . . . Robot Schematics Acquired . | . . . . Robots Built . | . . . . Matter . | . . . . Time . | . . . . Total Robot Build Rating . | . . . . Part Schematics Acquired 2 | . . 2 . Parts Built . | . . . . Matter . | . . . . Time . | . . . . Total Part Build Rating . | . . . . Parts Repaired . | . . . . Time . | . . . . Parts Recycled . | . . . . Recycled Matter . | . . . . Retrieved Matter . | . . . . Retrieved Components . | . . . . Parts Scanalyzed . | . . . . Part Schematics Acquired . | . . . . Parts Damaged . | . . . . Bothacking | -11 -10 -9 -8 ------------ Run | Scr Mat Mat Mat Used RIF Installer . | . . . . Robots Hacked . | . . . . Non-combat . | . . . . Combat . | . . . . Robot Hacks Applied . | . . . . Relay Couplers Released . | . . . . Robots Rewired . | . . . . Allies Hacked . | . . . . Hacks Repelled . | . . . . Allies | -11 -10 -9 -8 -------- Run | Scr Mat Mat Mat Total Allies . | . . . . Largest Group . | . . . . Highest-Rated Group . | . . . . Highest-Rated Ally . | . . . . Total Orders . | . . . . Ally Attacks . | . . . . Total Damage . | . . . . Kills . | . . . . Allies Corrupted . | . . . . Allies Melted . | . . . . Intel | -11 -10 -9 -8 ------- Run | Scr Mat Mat Mat Robot Analysis Total . | . . . . Derelict Logs Recovered . | . . . . Drone Launches . | . . . . Drone Recoveries . | . . . . Exploration | -11 -10 -9 -8 ------------- Run | Scr Mat Mat Mat Turns Passed 1870 | 126 109 404 1231 Spaces Moved 1281 | 83 106 369 723 Core 40 | 39 . . 1 Treads . | . . . . Legs . | . . . . Wheels 1241 | 44 106 369 722 Hover . | . . . . Flight . | . . . . Fastest Speed 50 | 50 80 80 90 Average Speed 103 | 100 80 86 116 Slowest Speed 950 | 250 80 90 950 Overloaded Moves . | . . . . Propulsion Burnouts . | . . . . Robots Hopped . | . . . . Cave-ins Triggered . | . . . . Exploration Rate (%) 28 | 5 21 36 52 Regions Visited 3 Branch Regions . Pre-discovered Areas . | . . . . Known Exits Taken 1 | . . 1 . Unknown Exits Taken 2 | 1 1 . . Scrap Searched . | . . . . Spaces Dug . | . . . . Terrain Destroyed 7 | . . 7 . Melee . | . . . . Projectile . | . . . . AOE 7 | . . 7 . Actions | -11 -10 -9 -8 --------- Run | Scr Mat Mat Mat Total 1604 | 108 119 429 948 Wait 66 | . . 4 62 Move 1278 | 82 105 368 723 Hop . | . . . . Pick Up 59 | 11 4 12 32 Fast Attach 14 | 2 . 6 6 Attach 20 | 5 . 1 14 Detach 1 | . . . 1 Swap 14 | . 3 6 5 Drop 27 | . 2 16 9 Fire 125 | 8 5 16 96 Melee . | . . . . Ram . | . . . . Kick . | . . . . Crush . | . . . . Escape Stasis . | . . . . Rewire . | . . . . Trap . | . . . . Miscellaneous . | . . . . Route ------- -11/Scrapyard -10/Materials (discovered 2 exits: *Mat / [*Min]) -9/Materials -8/Materials (discovered 2 exits: [*Fac x2]) History --------- Turn | Location | Event 28 | -11/Scrapyard | Discovered new exit (range 13) 127 | -11/Scrapyard | Entered Materials 129 | -10/Materials | Discovered new exit (range 13) 223 | -10/Materials | Discovered new exit (range 14) 236 | -10/Materials | Entered another Materials area 236 | -9/Materials | Evolved 2 slots: Utility x2 311 | -9/Materials | Build established: Mutant 600 | -9/Materials | Discovered new exit (range 3) 624 | -9/Materials | Identified exit to Materials 640 | -9/Materials | Entered another Materials area 640 | -8/Materials | Evolved 2 slots: Utility x2 772 | -8/Materials | Lost 8 parts (2p2n4w) 986 | -8/Materials | Discovered new exit (range 14) 1474 | -8/Materials | Build established: Hauler-Mutant 1584 | -8/Materials | Core integrity fell below 50% 1707 | -8/Materials | Discovered new exit (range 3) 1764 | -8/Materials | Core integrity fell below 20% 1804 | -8/Materials | Lost 4 parts (2p1n1u) 1810 | -8/Materials | Destroyed 7 combat bots 1871 | -8/Materials | Destroyed by S-10 Pest with Light Assault Rifle Last Messages --------------- 01807_ K-01 Serf collects debris. 01807_ Acquired 5 matter. 01809_ R-06 Scavenger collects Sml. Storage Unit. 01809_ Acquired 15 matter. 01809_ K-01 Serf collects debris. 01811_ R-06 Scavenger collects Com. Wheel. 01812_ K-01 Serf collects debris. 01815_ Acquired Med. Storage Unit. 01815_ K-01 Serf collects debris. 01815_ R-06 Scavenger collects Flight Unit. 01820_ R-06 Scavenger collects Particle Gun. 01822_ Acquired Com. Wheel. 01825_ Acquired 27 matter. 01826_ Acquired 92 matter. 01830_ Acquired Imp. Signal Interpreter. 01860_ System corrupted: Component data lost. 01860_ T-07 Excavator is excavating. 01863_ R-06 Scavenger inserts Flight Unit into recycling unit. 01864_ T-07 Excavator is excavating. 01871_ K-01 Serf cleans the Pressure Siphon. Map ----- +----------------------------------------------------+ | #????????????????????????????????????????? | | #########????????????????????????????????????????? | | ?????????????????????????????????????????????????? | | ?????????????????????????????????????????????????? | | ?????????????????????????????????????????????????? | | ?????????????????????????????????????????????????? | | ?????????????????????????????????????????????????? | | ?????????????????????????????????????????????????? | | ?????????????????????????????????????????????????? | | ?????????????????????????????????????????????????? | | ????????????????????????? ?????????????????????? | | ????????????????????????? ???????????????????? | | ????????????????????????? ! "????????????????? | | ????????????????????????? ???????????????? | | ???????????????#####????? ???????????????? | | ???????????????# ????# k""???????????????? | | ???????????????# ""? # [[[ ""???"???????????? | | ########???????# """ # [[[ """ "???????????? | | "T" #???????# """ # [[ """ ""??????????? | | #???????# + ??????????? | | #???????# # ??????????? | | #???????# "Y" #[ ?????????? | | ########???????? """ # ?????????? | | ?????????????????? ?# ??????????? | | ####################+#### """????????????? | | @ ""T????????????? | | s????????? | | u ????????? | | #################+######u#### """ ?????????? | | !!#?????????????? [????t #????""?????????????? | | % *#????????????# """ [!=???##???????????????????? | | !* #????????????# """ [!=#???????????????????????? | | [/=#????????????# """ #???????????????????????? | | %* #????????????# #???????????????????????? | | [==#????????????# ! " "" #???????????????????????? | | [%%+???????????? "R"" #???????????????????????? | | ==#????????????? ?"" #???????????????????????? | | = =#??????????????? ?? #???????????????????????? | | =#???????????????????#?????????????????????????? | | % #?????????????????????????????????????????????? | | #?????????????????????????????????????????????? | | #?????????????????????????????????????????????? | | #???##????????????????????????????????????????? | | #?## #####????????????????????????????????????? | | #? #????????????????????????????????????? | | # !!! "" #????????????????????????????????????? | | #[!! """#????????????????????????????????????? | | +%!! R"#????????????????????????????????????? | | #! """#????????????????????????????????????? | | # """ #????????????????????????????????????? | +----------------------------------------------------+ Best States ------------- Heat Dissipation 45 Energy Generation 14 Energy Capacity 325 Matter Stores 300 Matter Capacity 300 Sight Range 16 Terrain Scan Density 10 Armor Coverage 225 Evasion (%) 50 Item Schematics ----------------- Hcp. Storage Unit | -9/Materials | Hacked Com. Wheel | -9/Materials | Hacked Robot Schematics ------------------ None Fabricated ------------ Nothing Alien Tech Used ----------------- None Achievements -------------- None Challenges ------------ None Game ------ Seed SuperchargedDynamicStorage Manual? 0 Play Time 00:29:21 Cumulative 108.8 hours Start 2020.08.21 @ 21:28:02 End 2020.08.21 @ 21:55:15 Sessions 1 Manual Loads 0 Difficulty Rogue Special Mode None Game No. 135 Rogue 135 Adventurer 0 Explorer 0 Win Type - Total 1 Types 1/0/0/0/0/0/0 Lore% 49 Gallery% 61 Achievement% 45 Wizard Run 0 Options --------- ASCII 0 Keyboard 0 Movement Numpad Keybinds 0 Fullscreen 2 Font 24/Smallcaps Map View 76x50 Tactical HUD 1 Map Filters NONE Filters NONE Steam 1 RUN: ee69ff8a-eab8-4a41-b845-ed0fbb98ec8b